[Event "SixDays Budapest January IM-A 2025"]
[Site "Budapest"]
[Date "2025.01.27"]
[Round "2.4"]
[White "Golubovskis, Maksims"]
[Black "Fodor, Balazs"]
[Result "1-0"]
[Annotator "TA"]
[ECO "B10"]
[WhiteElo "2237"]
[BlackElo "2214"]
[PlyCount "60"]
[EventDate "2025.01.24"]
[EventType "tourn"]
[EventCountry "HUN"]
[SourceTitle "playchess.com"]
[Source "ChessBase"]
[SourceQuality "1"]
[TimeControl "5400+30"]

{[%evp 20,60,26,22,25,23,12,22,31,18,20,9,17,0,0,0,0,11,0,8,25,23,33,27,37,39,41,45,142,131,484,495,622,629,612,414,512,293,285,310,306,314,338]} 1. e4 {[%emt 0:04:18]} c6 {[%emt 0:00:08]} 2. Nf3 {[%emt 0:02:29]} d5 {[%emt 0:00:07]} 3. Nc3 {[%emt 0:00:21]} dxe4 {[%emt 0:00:42]} 4. Nxe4 {[%emt 0:00:02]} Nf6 {[%emt 0:01:10]} 5. Qe2 {[%emt 0:02:40]} Nxe4 {[%emt 0:00:08]} 6. Qxe4 {[%emt 0:00:01]} Nd7 {[%emt 0:00:08]} 7. Bc4 {[%emt 0:00:47]} Nf6 {[%emt 0:00:05]} 8. Qe2 {[%emt 0:00:26]} Bf5 {[%emt 0:08:16]} 9. d4 {[%emt 0:00:39]} e6 {[%emt 0:00:06]} 10. O-O $1 {[%emt 0:00:54][%mdl 4] is recently more successful than 10.Bg5.} Be7 {[%emt 0:01:03] 10...Bd6 is vanishing.} 11. Bf4 {[%emt 0:00:53]} O-O {[%emt 0:00:10] B17: Caro-Kann: Modern Line (4...Nd7).} 12. c3 {[%emt 0:01:00]} h6 {[%emt 0:05:08]} 13. Rfe1 {[%emt 0:03:58]} Bd6 $146 {[%emt 0:07:17] The position is equal.} (13... Nd5 14. Be5 Qb6 15. h3 Rad8 16. Rad1 Rfe8 17. Bb3 a5 18. c4 Nf6 19. c5 Qb4 20. Rc1 Be4 {1-0 Milosevic,G (2405)-Kallai,G (2510) Verbandsliga Sued Baden 9495 1994 (2.1)}) 14. Ne5 {[%emt 0:02:12]} Qc7 {[%emt 0:00:11]} 15. Rad1 {[%emt 0:06:37]} Rad8 {[%emt 0:06:04]} 16. h3 {[%emt 0:08:38]} Nd5 {[%emt 0:00:33]} 17. Bc1 {[%emt 0:03:32]} Rfe8 {[%emt 0:06:27]} 18. Bb3 {[%emt 0:03:45]} a6 {[%emt 0:06:54]} 19. Qf3 {[%emt 0:03:27]} b5 {[%emt 0:06:38]} 20. c4 {[%emt 0:14:04]} bxc4 {[%emt 0:00:42]} 21. Nxc4 {[%emt 0:00:42]} Bb4 {[%emt 0:04:31]} 22. Re2 {[%emt 0:01:34]} Be7 {[%emt 0:08:05]} 23. Bd2 {[%emt 0:02:08]} Qa7 {[%emt 0:06:43]} ({Better is} 23... Qb7 $14) 24. Ne5 $16 {[%emt 0:02:24][%csl Oe5] Strong Square White (e5)} Rc8 $2 {[%emt 0:08:41][%mdl 8192] [#] Loses the game.} (24... Rd6 $16 25. Nxf7 (25. g4 Bg6 $14) 25... Kxf7) 25. g4 $18 {[%emt 0:01:28]} f6 {[%emt 0:00:20]} 26. Nxc6 {[%emt 0:00:49]} Rxc6 {[%emt 0:01:32]} 27. Bxd5 {[%emt 0:01:24]} Rd6 {[%emt 0:01:33]} 28. Bb3 {[%emt 0:01:21]} ({Weaker is} 28. gxf5 Rxd5 29. Bf4 (29. Rxe6 Qxd4 30. Re2 Rb5 $16) 29... Rxd4 30. Rxd4 (30. Rxe6 Rxd1+ 31. Qxd1 Rd8 $16) 30... Qxd4 $16) 28... Bg6 {[%emt 0:01:28] White has a decisive advantage.} 29. Bxe6+ {[%emt 0:00:31]} Kh8 {[%emt 0:00:11]} 30. d5 {[%emt 0:00:55]} Bf8 {[%emt 0:02:41] Weighted Error Value: White=0.25 (precise) /Black=0.47  Loses game:     	---       	Black=1      Mistake:       	---       	Black=1      OK:         	White=9     	Black=5      Best:        	White=1     	---} 1-0

[Event "SixDays Budapest January IM-A 2025"]
[Site "Budapest"]
[Date "2025.01.27"]
[Round "2.5"]
[White "Varga, Zoltan"]
[Black "Kustar, Sandor"]
[Result "1/2-1/2"]
[Annotator "TA"]
[ECO "A05"]
[WhiteElo "2304"]
[BlackElo "2240"]
[PlyCount "38"]
[EventDate "2025.01.24"]
[EventType "tourn"]
[EventCountry "HUN"]
[SourceTitle "playchess.com"]
[Source "ChessBase"]
[SourceQuality "1"]
[TimeControl "5400+30"]

{[%evp 17,38,0,-5,-8,-6,-20,19,-17,89,80,116,118,110,-4,114,114,212,140,235,216,245,218,295]} 1. Nf3 Nf6 2. c4 b6 3. g3 Bb7 4. Bg2 g6 5. O-O Bg7 6. d3 O-O 7. e4 c5 8. Nc3 d6 9. Re1 Nc6 10. Rb1 {A30: Symmetrical English: Double Fianchetto and Hedgehog.} Nd7 11. Be3 Nd4 $146 (11... Nde5 12. Nh4 Nd4 13. f4 Nec6 14. Bf2 e6 15. a3 Qd7 16. Kh1 a6 17. Nf3 b5 {0-1 Gomez Esteban,J (2463)-Anton Guijarro,D (2581) Sestao op 29th 2013 (5)}) 12. Qd2 {The position is equal.} f5 {[#]} (12... Nxf3+ $11 13. Bxf3 Ne5) 13. Bxd4 $1 $16 cxd4 14. Nb5 fxe4 15. dxe4 {[#] White is more active.} (15. Nfxd4 $16 {Hoping for Ne6.} Nc5 16. dxe4 (16. Bxe4 Nxe4 17. dxe4 Qc8 $18)) 15... Rxf3 16. Bxf3 Ne5 (16... e5 $16) 17. Bg2 {White is clearly better.} Nxc4 (17... Nc6 $16 18. Rbd1 e5) 18. Qe2 Na5 19. Rec1 Nc6 {[%mdl 32768] Weighted Error Value: White=0.33/Black=0.62 An unexpected result.  Mistake:       	White=1     	Black=4      Inaccurate:     	White=2     	Black=3      OK:         	White=1     	Black=2      Strong:       	White=1     	---} 1/2-1/2

[Event "SixDays Budapest January IM-A 2025"]
[Site "Budapest"]
[Date "2025.01.27"]
[Round "3.1"]
[White "Kustar, Sandor"]
[Black "Karacsonyi, Kata"]
[Result "1/2-1/2"]
[Annotator "TA"]
[ECO "B20"]
[WhiteElo "2240"]
[BlackElo "2183"]
[PlyCount "117"]
[EventDate "2025.01.24"]
[EventType "tourn"]
[EventCountry "HUN"]
[SourceTitle "playchess.com"]
[Source "ChessBase"]
[SourceQuality "1"]
[TimeControl "5400+30"]

{[%evp 11,117,4,12,19,47,36,45,32,43,31,35,0,0,0,0,0,0,-92,57,57,49,61,57,53,54,54,52,46,43,47,46,23,50,43,50,14,14,16,22,19,7,0,0,0,-13,-25,-14,-50,-38,-41,-25,-35,-35,-31,-8,-8,0,0,-6,-37,-36,-35,-35,-35,-37,-53,-53,-66,-66,-340,-322,-343,-16,-9,-10,-11,-10,-8,-9,-16,-19,-25,-14,-31,0,0,0,0,0,0,0,0,0,-8,-8,-8,-8,-8,-8,-8,0,0,0,0,0,0,0,0]} 1. e4 {[%emt 0:00:03]} c5 {[%emt 0:00:08]} 2. d3 {[%emt 0:00:06]} Nc6 {[%emt 0:00:31]} 3. g3 {[%emt 0:00:43]} g6 {[%emt 0:01:15]} 4. Bg2 {[%emt 0:00:28]} Bg7 {[%emt 0:00:11]} 5. f4 {[%emt 0:00:42]} d6 {[%emt 0:02:15]} 6. Nf3 {[%emt 0:00:13]} e6 {[%emt 0:02:13]} 7. c3 {[%emt 0:00:28] B20: Sicilian: Unusual White 2nd moves.} f5 {[%emt 0:03:21]} 8. Qe2 {[%emt 0:12:48]} Nge7 {[%emt 0:03:31]} 9. O-O {[%emt 0:09:03] White is slightly better.} O-O {[%emt 0:01:37]} 10. Re1 $146 {[%emt 0:09:11]} (10. Be3 Rb8 11. Nbd2 Qb6 12. Nc4 Qc7 13. e5 dxe5 14. Bxc5 Rd8 15. Bxe7 Qxe7 16. Nfxe5 Nxe5 17. fxe5 b5 18. Nd6 Qc7 {1-0 Breneis,L (2178)-Kreutzmann,D (1937) Innsbruck op-A 1st 2017 (6)}) 10... e5 {[%emt 0:08:47]} 11. fxe5 {[%emt 0:01:20]} dxe5 {[%emt 0:12:43]} 12. Be3 {[%emt 0:10:42]} b6 {[%emt 0:02:30]} 13. exf5 {[%emt 0:01:10]} Bxf5 {[%emt 0:03:15]} 14. Bf1 {[%emt 0:01:03] [#]} (14. Ng5 $11 {remains equal.}) 14... Bxd3 {[%emt 0:13:33]} 15. Qxd3 $14 {[%emt 0:00:38]} Qxd3 {[%emt 0:04:38]} 16. Bxd3 {[%emt 0:00:05] A sharp opening} Rxf3 {[%emt 0:00:09]} 17. Nd2 {[%emt 0:00:08] White sacrificed a pawn} Rff8 {[%emt 0:00:28]} 18. Bc4+ {[%emt 0:00:43][%mdl 1024] White has compensation.} Kh8 {[%emt 0:00:06]} 19. Ne4 {[%emt 0:00:21]} h6 {[%emt 0:01:04]} 20. Rad1 {[%emt 0:01:20]} Rad8 {[%emt 0:01:59]} 21. Kg2 {[%emt 0:09:03]} Kh7 {[%emt 0:04:24]} 22. g4 {[%emt 0:00:12]} Ng8 {[%emt 0:04:27]} 23. h3 {[%emt 0:10:17]} Nf6 {[%emt 0:04:18]} 24. Rxd8 {[%emt 0:01:20]} Rxd8 {[%emt 0:00:52]} 25. Kf3 {[%emt 0:03:57]} Ne7 {[%emt 0:10:13]} 26. Nxf6+ {[%emt 0:03:33]} Bxf6 {[%emt 0:00:06]} 27. Ke4 {[%emt 0:00:08]} Nc8 {[%emt 0:00:54]} 28. Kf3 {[%emt 0:17:04]} Bh4 {[%emt 0:02:42]} 29. Rf1 {[%emt 0:00:43]} (29. Re2 $5) 29... Nd6 {[%emt 0:00:20]} 30. Bd5 {[%emt 0:02:13]} Rf8+ {[%emt 0:06:11]} 31. Ke2 {[%emt 0:00:07]} Rxf1 {[%emt 0:00:07]} 32. Kxf1 $15 {[%emt 0:00:02][%mdl 4096] Endgame KBB-KBN. Black is a pawn up.} Bg3 {[%emt 0:00:36]} 33. Ke2 {[%emt 0:00:45]} Bf4 {[%emt 0:00:24]} 34. Bf2 {[%emt 0:00:17]} e4 {[%emt 0:03:29]} 35. b4 {[%emt 0:00:16]} Nb5 {[%emt 0:00:17]} 36. Be1 {[%emt 0:04:47]} cxb4 {[%emt 0:00:11]} 37. cxb4 {[%emt 0:00:25]} Nd4+ {[%emt 0:00:15]} 38. Kf2 {[%emt 0:00:31]} e3+ {[%emt 0:00:24]} 39. Kg2 {[%emt 0:00:05]} Nc2 {[%emt 0:04:51]} 40. Bc3 {[%emt 0:01:08][%mdl 8192]} (40. Kf1 $1 $15) 40... e2 $19 {[%emt 0:00:34]} 41. Kf3 {[%emt 0:02:00] Against Ne3} e1=Q $2 {[%emt 0:00:34]} (41... e1=R 42. Bxe1 Nxe1+ 43. Kxf4 Nd3+ 44. Ke3 Nxb4 45. Bc4 $17) ({Better is} 41... Be5 $19 42. Bd2 e1=Q (42... e1=R $2 43. Bxe1 Nxe1+ 44. Ke4 $19) (42... e1=B $2 43. Bc1 $19) 43. Bxe1 Nxe1+ 44. Ke4 Bd6) 42. Bxe1 $11 {[%emt 0:00:02]} Nxe1+ {[%emt 0:00:15]} 43. Kxf4 {[%emt 0:00:08] [#] Be4 is the strong threat. KB-KN} Nd3+ {[%emt 0:00:05]} 44. Ke4 {[%emt 0:00:49]} Nxb4 {[%emt 0:00:07]} 45. Bb3 {[%emt 0:00:05]} Kg7 {[%emt 0:00:56]} 46. Ke5 {[%emt 0:00:03]} Nd3+ {[%emt 0:00:15]} 47. Kd6 {[%emt 0:00:08]} Nf2 {[%emt 0:01:25]} 48. Kc6 {[%emt 0:00:37] The position is equal.} Nxh3 {[%emt 0:00:14]} 49. Kb7 {[%emt 0:00:06]} Nf4 {[%emt 0:00:33]} 50. Kxa7 {[%emt 0:00:06]} b5 {[%emt 0:00:42]} 51. Kb6 {[%emt 0:00:08]} b4 {[%emt 0:00:05]} 52. Bc4 {[%emt 0:01:34]} h5 {[%emt 0:00:52]} 53. gxh5 {[%emt 0:00:10]} gxh5 {[%emt 0:00:03]} 54. Kb5 {[%emt 0:01:06]} h4 {[%emt 0:00:27] ...h3 is the strong threat.} 55. Bf1 {[%emt 0:00:51]} Nd5 {[%emt 0:00:09]} 56. Kc5 {[%emt 0:00:45]} Nc3 {[%emt 0:00:21]} 57. Kxb4 {[%emt 0:00:09]} Nxa2+ {[%emt 0:00:05]} 58. Kb3 {[%emt 0:00:12]} Nc1+ {[%emt 0:00:09]} 59. Kb2 {[%emt 0:00:09] Weighted Error Value: White=0.16 (very precise) /Black=0.21 (precise)   Loses game:     	White=1     	---        Missed win:     	---       	Black=1      Mistake:       	White=1     	Black=1      Inaccurate:     	White=4     	Black=3      OK:         	White=23    	Black=15     Best:        	White=2     	Black=6} 1/2-1/2

[Event "SixDays Budapest January IM-A 2025"]
[Site "Budapest"]
[Date "2025.01.27"]
[Round "3.2"]
[White "Fodor, Balazs"]
[Black "Varga, Zoltan"]
[Result "1/2-1/2"]
[Annotator "TA"]
[ECO "B03"]
[WhiteElo "2214"]
[BlackElo "2304"]
[PlyCount "113"]
[EventDate "2025.01.24"]
[EventType "tourn"]
[EventCountry "HUN"]
[SourceTitle "playchess.com"]
[Source "ChessBase"]
[SourceQuality "1"]
[TimeControl "5400+30"]

{[%evp 12,113,31,30,40,30,47,33,18,28,17,13,103,125,98,115,129,121,139,126,100,121,117,124,158,142,175,183,195,179,202,199,245,257,277,267,317,320,318,306,275,214,239,226,222,139,141,141,318,306,283,268,316,232,285,298,318,310,304,314,300,317,279,236,292,198,188,181,187,35,43,41,42,33,33,21,33,21,21,22,21,0,6,0,0,0,23,29,41,41,41,41,41,41,41,33,32,19,59,34,37,10,14,-34]} 1. e4 {[%emt 0:00:08][%cal Be2e4,Be4e5][%mdl 32]} Nf6 {[%emt 0:03:29][%cal Bg8f6,Bf6d5,Bd5b6][%mdl 32]} 2. e5 {[%emt 0:00:08]} Nd5 {[%emt 0:00:03]} 3. d4 {[%emt 0:00:09]} d6 {[%emt 0:01:56]} 4. c4 {[%emt 0:00:08]} Nb6 {[%emt 0:00:09]} 5. f4 {[%emt 0:00:06]} g6 {[%emt 0:02:01]} 6. Nc3 {[%emt 0:00:08]} Bg7 {[%emt 0:00:06]} 7. Be3 {[%emt 0:00:06]} Be6 {[%emt 0:01:11]} 8. d5 {[%emt 0:00:07]} Bc8 {[%emt 0:00:09]} 9. Nf3 {[%emt 0:04:24]} O-O {[%emt 0:02:35] White is slightly better.} 10. Qd2 {[%emt 0:10:26]} Bg4 {[%emt 0:00:51]} 11. O-O-O {[%emt 0:00:32]} N8d7 {[%emt 0:01:50]} (11... c6 $11 {remains equal.}) 12. h3 $1 $16 {[%emt 0:05:54]} Bxf3 {[%emt 0:05:32]} 13. gxf3 {[%emt 0:00:07]} dxe5 {[%emt 0:00:03]} 14. c5 $1 {[%emt 0:00:37] White is more active.} exf4 {[%emt 0:00:06]} 15. Bd4 {[%emt 0:00:09]} Ne5 {[%emt 0:10:41]} 16. Bxe5 {[%emt 0:02:17]} (16. cxb6 $6 Nxf3 17. Qxf4 Nxd4 18. bxc7 Qd6 19. Rxd4 Qxf4+ 20. Rxf4 Bh6 $14) 16... Bxe5 {[%emt 0:00:07]} 17. cxb6 {[%emt 0:00:08]} cxb6 {[%emt 0:05:59]} 18. Kb1 {[%emt 0:01:26]} Rc8 {[%emt 0:00:59]} 19. Ne4 {[%emt 0:03:33]} Qc7 {[%emt 0:07:30] Black is weak on the light squares} 20. h4 {[%emt 0:06:04]} Rfd8 {[%emt 0:01:51][%cal Od8d5]} 21. Rh2 $1 {[%emt 0:19:14]} (21. h5 $6 Rxd5 22. Bd3 (22. Nf6+ $2 Bxf6 23. Bd3 Rcd8 $19) 22... Rcd8 $14) 21... e6 {[%emt 0:07:08]} (21... Bg7 {is a better defense.} 22. d6 exd6) 22. d6 $18 {[%emt 0:00:15]} Qc6 {[%emt 0:00:06]} 23. Qb4 $1 {[%emt 0:06:09]} (23. h5 f5 24. Bh3 Kf8 25. hxg6 hxg6 $11) 23... a6 {[%emt 0:02:06] Prevents Bb5} 24. h5 {[%emt 0:04:34]} Rd7 {[%emt 0:03:30]} 25. hxg6 {[%emt 0:00:51]} hxg6 {[%emt 0:00:07]} 26. Qb3 {[%emt 0:08:16]} b5 {[%emt 0:04:49]} 27. a3 {[%emt 0:07:48][%cal Ba2a3,Ba3a4][%mdl 32]} Kg7 {[%emt 0:04:51]} 28. Rhd2 {[%emt 0:04:06]} Qb6 {[%emt 0:01:58]} 29. a4 {[%emt 0:00:41]} b4 {[%emt 0:02:43]} (29... Qe3 $16 30. Rd3 bxa4 31. Qxa4 Qb6) 30. Bc4 {[%emt 0:02:06][%cal Oc4e6] And now Bxe6! would win.} Re8 {[%emt 0:00:08]} 31. Rh1 {[%emt 0:03:52] Inhibits Qa5.} Rdd8 {[%emt 0:00:30]} 32. Rdh2 {[%emt 0:04:15]} Rh8 {[%emt 0:01:43] Wards off Rh7+} 33. Rxh8 {[%emt 0:00:38]} Rxh8 {[%emt 0:00:02]} 34. Rxh8 {[%emt 0:00:16]} Kxh8 {[%emt 0:00:03]} 35. Qd1 {[%emt 0:01:58]} Kg7 {[%emt 0:00:37][%cal Bh8g7,Bg7f8,Bf8e7][%mdl 32]} 36. d7 {[%emt 0:00:17]} Bc7 {[%emt 0:00:02]} 37. Bb3 {[%emt 0:02:22]} Kf8 {[%emt 0:01:49]} 38. Ka2 {[%emt 0:01:07]} Ke7 {[%emt 0:00:09]} 39. Qd2 {[%emt 0:00:18]} a5 {[%emt 0:10:43] [#]} 40. d8=Q+ {[%emt 0:00:34]} Bxd8 $14 {[%emt 0:00:11]} 41. Qxf4 {[%emt 0:00:03] Strongly threatening Ng5.} Qd4 {[%emt 0:01:47]} 42. Qb8 {[%emt 0:01:15]} b6 {[%emt 0:00:12]} 43. Qg3 {[%emt 0:02:05]} Kf8 {[%emt 0:04:53]} (43... Kd7 {with more complications.} 44. Qe1 Bc7 45. Qc1 Be5) 44. Qd6+ {[%emt 0:00:52]} (44. Qf4 {feels hotter.} Kg7 45. Qh2 Kf8 46. Qh7) 44... Qxd6 {[%emt 0:02:41]} 45. Nxd6 {[%emt 0:00:02]} Ke7 {[%emt 0:00:02]} 46. Nb5 {[%emt 0:00:18]} Kf6 {[%emt 0:00:30]} 47. Bd1 {[%emt 0:00:22]} Ke5 {[%emt 0:00:45]} 48. Kb3 {[%emt 0:00:08]} Kd5 {[%emt 0:06:16]} 49. Kc2 {[%emt 0:00:07]} Bf6 {[%emt 0:00:53]} 50. b3 {[%emt 0:00:04]} g5 {[%emt 0:01:24]} 51. Be2 {[%emt 0:00:40]} Be7 {[%emt 0:00:32]} 52. Bc4+ {[%emt 0:00:06]} Ke5 {[%emt 0:00:27]} 53. Kd3 {[%emt 0:00:04]} Kf4 {[%emt 0:00:33]} 54. Ke2 {[%emt 0:00:14]} g4 {[%emt 0:01:13]} 55. fxg4 {[%emt 0:00:05]} Kxg4 {[%emt 0:00:03]} 56. Nd4 {[%emt 0:04:10]} Kf4 {[%emt 0:02:32] [#]} 57. Nxe6+ {[%emt 0:00:28] Black defended with fortune.   Weighted Error Value: White=0.18 (very precise) /Black=0.21 (precise) .  Loses game:     	---       	Black=1      Mistake:       	White=2     	Black=2      Inaccurate:     	White=3     	Black=1      OK:         	White=17    	Black=14     Best:        	White=4     	Black=4      Strong:       	White=4     	---} 1/2-1/2

[Event "SixDays Budapest January IM-A 2025"]
[Site "Budapest"]
[Date "2025.01.27"]
[Round "3.3"]
[White "Pribelszky, Bence Daniel"]
[Black "Golubovskis, Maksims"]
[Result "1-0"]
[Annotator "TA"]
[ECO "A05"]
[WhiteElo "2391"]
[BlackElo "2237"]
[PlyCount "85"]
[EventDate "2025.01.24"]
[EventType "tourn"]
[EventCountry "HUN"]
[SourceTitle "playchess.com"]
[Source "ChessBase"]
[SourceQuality "1"]
[TimeControl "5400+30"]

{[%evp 9,85,15,10,12,19,10,17,9,10,22,23,11,45,32,31,34,86,70,66,77,64,82,98,75,73,70,71,67,73,67,79,69,75,20,43,33,219,85,160,131,232,237,200,131,134,46,243,235,236,241,241,248,238,235,242,230,437,385,943,431,425,412,524,478,515,437,499,459,473,392,479,470,1076,1048,958,905,1269,1164]} 1. Nf3 {[%emt 0:03:09]} Nf6 {[%emt 0:00:25]} 2. g3 {[%emt 0:00:06]} d5 {[%emt 0:00:29]} 3. Bg2 {[%emt 0:00:18]} Bf5 {[%emt 0:00:35]} 4. O-O {[%emt 0:00:18]} e6 {[%emt 0:00:37]} 5. c4 {[%emt 0:02:41]} c6 {[%emt 0:00:50]} 6. Qb3 {[%emt 0:01:37] A11: English Opening: 1...c6.} Qc7 {[%emt 0:01:21]} 7. Nc3 {[%emt 0:01:14]} Nbd7 {[%emt 0:03:48]} 8. cxd5 {[%emt 0:00:56] The position is equal.} exd5 {[%emt 0:00:45]} 9. d3 {[%emt 0:00:29]} Bd6 {[%emt 0:01:59] Wards off Bf4} 10. Qc2 {[%emt 0:06:41]} O-O {[%emt 0:08:33]} 11. e4 {[%emt 0:00:22]} dxe4 {[%emt 0:01:13]} 12. dxe4 {[%emt 0:00:06]} Be6 {[%emt 0:02:03]} (12... Bg4 $14) 13. Nd4 $146 {[%emt 0:02:48]} (13. Re1 Ng4 14. Nd4 Bc5 15. Bf4 Qa5 16. Rad1 Rad8 17. h3 Nge5 18. a3 Ng6 19. Be3 Bxd4 20. Rxd4 {0-1 Miturova,M (2180)-Dartmann Aubanell,C (1870) BL 2223 (Women) 2022 (3.6)}) 13... Bc4 {[%emt 0:01:02]} 14. Rd1 {[%emt 0:00:58]} Rfe8 {[%emt 0:19:35]} 15. Nf5 {[%emt 0:01:52]} Bf8 {[%emt 0:01:54]} 16. Bf4 {[%emt 0:01:52]} Ne5 {[%emt 0:01:39]} 17. b3 {[%emt 0:16:34]} Ba6 {[%emt 0:00:21] [#]} 18. Nd5 $1 {[%emt 0:14:49]} Nxd5 {[%emt 0:00:21]} 19. exd5 {[%emt 0:02:54]} Qb6 {[%emt 0:05:31]} 20. d6 {[%emt 0:02:10][%csl Od6] White has a strong passed pawn} Rad8 {[%emt 0:12:43]} 21. h3 {[%emt 0:19:47] Prevents Ng4} (21. Qc3 $16 Ng4 22. Ne3) 21... f6 {[%emt 0:08:40]} 22. Qc3 {[%emt 0:01:43]} Qb5 $2 {[%emt 0:04:07]} (22... Rd7 $1 $14) 23. Rd2 {[%emt 0:07:06]} (23. a4 $18 {and White stays clearly on top.} Qe2 24. g4) 23... Rd7 {[%emt 0:07:26]} ({Black should try} 23... Nd3 24. Nd4 Qh5) 24. Rad1 {[%emt 0:01:26]} Nf7 {[%emt 0:01:23]} (24... Ng6 $16) 25. g4 $18 {[%emt 0:03:11]} Qb6 {[%emt 0:02:25]} 26. Be3 {[%emt 0:03:41]} Qd8 {[%emt 0:00:32]} 27. Bxa7 {[%emt 0:00:30] White is much more active.} (27. a4 $16) 27... b6 $2 {[%emt 0:05:50] Prevents b4} (27... Be2 $14) 28. Ne7+ $1 {[%emt 0:01:44]} (28. Bxc6 Rxa7 29. Bxe8 Qxe8 $11) 28... Bxe7 {[%emt 0:00:31]} 29. dxe7 {[%emt 0:00:05]} Rexe7 {[%emt 0:00:11]} 30. Rxd7 $40 {[%mdl 128] Black is in trouble.} (30. Bxc6 $2 Rxd2 31. Rxd2 Qc7 $19) 30... Rxd7 31. Rxd7 {[%emt 0:01:39]} Qxd7 {[%emt 0:00:01]} 32. Qxc6 {[%emt 0:01:26]} (32. Bxc6 $2 {is the wrong capture.} Qxa7 33. Bd5 Qd7 $19) 32... Qe7 {[%emt 0:03:45]} (32... Qxc6 {was called for.} 33. Bxc6 b5) 33. Qa8+ {[%emt 0:01:28]} (33. Qxb6 Qe1+ 34. Kh2 Qe5+ 35. f4 Qxf4+ 36. Kh1 Qc1+ 37. Qg1 Qc2 $16) 33... Nd8 $2 {[%emt 0:00:01]} (33... Qf8 34. Qc6 (34. Bxb6 Bc8 $18) 34... h5 35. Bxb6 hxg4 36. hxg4 Ne5 37. Qe6+ Kh8) 34. Qd5+ {[%emt 0:00:06]} (34. Bd5+ $142 Kh8 35. Bxb6) 34... Nf7 {[%emt 0:00:20]} 35. Bxb6 {[%emt 0:00:19] [#] Black must now prevent Qa8+.} Bc8 {[%emt 0:00:02]} 36. Be3 {[%emt 0:01:06]} g6 {[%emt 0:00:14]} 37. Qc5 {[%emt 0:01:17]} Qd7 {[%emt 0:00:34]} 38. Bd5 {[%emt 0:00:28]} Kg7 {[%emt 0:00:06] Wards off Bh6+} 39. Qc6 {[%emt 0:00:31]} Qd8 {[%emt 0:00:37]} 40. Bb6 {[%emt 0:00:19] White is clearly winning.} Qf8 {[%emt 0:00:54]} (40... Qd6 $142 41. Qxd6 Nxd6) 41. Qc7 {[%emt 0:00:14]} Ba6 {[%emt 0:00:06]} 42. Be3 {[%emt 0:00:52]} Qe8 {[%emt 0:01:11]} 43. Bxf7 {[%emt 0:00:17] Weighted Error Value: White=0.37/Black=0.69  Loses game:     	---       	Black=2      Mistake:       	White=4     	Black=6      Inaccurate:     	White=1     	Black=1      OK:         	White=7     	Black=11     Best:        	White=3     	---        Strong:       	White=1     	---} 1-0